[Event "94th FRA-ch Open C 2019"]
[Site "Chartres"]
[Date "2019.08.18"]
[Round "2.6"]
[White "Galhaud, Jean-Philippe"]
[Black "Chaillou, Vincent"]
[Result "1/2-1/2"]
[ECO "B50"]
[WhiteElo "1736"]
[BlackElo "1654"]
[Annotator "NA"]
[PlyCount "153"]
[EventDate "2019.08.17"]
[EventType "swiss"]
[EventCountry "FRA"]
[SourceTitle "playchess.com"]
[Source "ChessBase"]
[SourceQuality "1"]
[TimeControl "40/5400+30:1800+30"]

1. e4 {[%emt 0:00:00]} c5 {[%emt 0:00:00]} 2. Nf3 {[%emt 0:00:00]} d6 {[%emt 0:00:00]} 3. c3 {[%emt 0:00:46]} Nf6 {[%emt 0:00:04]} 4. Be2 {[%emt 0:00:07]} e6 {[%emt 0:00:28]} 5. O-O {[%emt 0:01:22]} Be7 {[%emt 0:00:04]} 6. d3 {[%emt 0:11:02]} Nc6 {[%emt 0:00:56]} 7. b3 {[%emt 0:03:17]} O-O {[%emt 0:01:14]} 8. Bb2 {[%emt 0:00:12]} a6 {[%emt 0:04:28]} 9. Nbd2 {[%emt 0:00:17]} b5 {[%emt 0:00:28]} 10. d4 {[%emt 0:04:20]} Bb7 {[%emt 0:02:19]} 11. dxc5 {[%emt 0:02:47]} dxc5 {[%emt 0:00:24]} 12. Qc2 {[%emt 0:00:22]} Qc7 {[%emt 0:01:07]} 13. Rfe1 {[%emt 0:02:39]} Qf4 {[%emt 0:06:40]} 14. Rad1 {[%emt 0:09:43]} Rad8 {[%emt 0:00:50]} 15. Bc1 {[%emt 0:10:34]} Qc7 {[%emt 0:00:18]} 16. Bd3 {[%emt 0:02:08]} Ne5 {[%emt 0:10:32]} 17. Nxe5 {[%emt 0:00:50]} Qxe5 {[%emt 0:00:06]} 18. Nf3 {[%emt 0:00:28]} Qh5 {[%emt 0:01:25]} 19. Bf4 {[%emt 0:01:46]} c4 {[%emt 0:07:07]} 20. bxc4 {[%emt 0:06:46]} bxc4 {[%emt 0:00:11]} 21. Bxc4 {[%emt 0:00:52]} Rxd1 {[%emt 0:00:27]} 22. Rxd1 {[%emt 0:02:54]} Bxe4 {[%emt 0:00:22]} 23. Qe2 {[%emt 0:00:45]} Bxf3 {[%emt 0:03:19]} 24. Qxf3 {[%emt 0:02:54]} Qxf3 {[%emt 0:02:41]} 25. gxf3 {[%emt 0:00:05]} Rc8 {[%emt 0:03:55]} 26. Bxa6 {[%emt 0:02:41]} Rxc3 {[%emt 0:00:39]} 27. Kg2 {[%emt 0:08:14]} Nd5 {[%emt 0:03:39]} 28. Be5 {[%emt 0:01:40]} Rc2 {[%emt 0:01:04]} 29. Rb1 {[%emt 0:03:39]} f6 {[%emt 0:05:04]} 30. Bd4 {[%emt 0:07:07]} Rxa2 {[%emt 0:03:30]} 31. Bc8 {[%emt 0:03:21]} Nf4+ {[%emt 0:05:36]} 32. Kf1 {[%emt 0:01:25]} Kf7 {[%emt 0:05:25]} 33. Be3 {[%emt 0:02:24]} Nd5 {[%emt 0:03:06]} 34. Bd4 {[%emt 0:01:19]} Rc2 {[%emt 0:01:45]} 35. Ba6 {[%emt 0:01:19]} Rd2 {[%emt 0:02:59]} 36. Ba1 {[%emt 0:04:04]} Bc5 {[%emt 0:06:43]} 37. Be2 {[%emt 0:00:53]} Nf4 {[%emt 0:01:20]} 38. Re1 {[%emt 0:00:34]} Nxe2 {[%emt 0:00:50]} 39. Rxe2 {[%emt 0:00:15]} Rd1+ {[%emt 0:00:14]} 40. Re1 {[%emt 0:00:10]} Rxe1+ {[%emt 0:04:15]} 41. Kxe1 {[%emt 0:30:04]} Kg6 {[%emt 0:30:23]} 42. Bc3 {[%emt 0:02:15]} Kf5 {[%emt 0:01:50]} 43. Kf1 {[%emt 0:00:17]} e5 {[%emt 0:00:44]} 44. Kg2 {[%emt 0:00:14]} Bd4 {[%emt 0:00:55]} 45. Bb4 {[%emt 0:00:34]} g6 {[%emt 0:00:53]} 46. Ba5 {[%emt 0:02:22]} Ke6 {[%emt 0:01:50]} 47. Bb4 {[%emt 0:00:29]} f5 {[%emt 0:00:14]} 48. Bd2 {[%emt 0:00:45]} Kd5 {[%emt 0:00:56]} 49. Bg5 {[%emt 0:00:58]} Kc4 {[%emt 0:00:18]} 50. Bh6 {[%emt 0:00:24]} Kd3 {[%emt 0:00:12]} 51. Kf1 {[%emt 0:00:06]} Bc3 {[%emt 0:01:28]} 52. Bg5 {[%emt 0:00:13]} Bd2 {[%emt 0:00:08]} 53. Bf6 {[%emt 0:00:34]} Bf4 {[%emt 0:00:42]} 54. h3 {[%emt 0:00:20]} g5 {[%emt 0:01:27]} 55. Be7 {[%emt 0:00:00]} h5 {[%emt 0:00:00]} 56. Bf6 {[%emt 0:00:00]} e4 {[%emt 0:00:00]} 57. fxe4 {[%emt 0:00:00]} Kxe4 {[%emt 0:00:00]} 58. Be7 {[%emt 0:00:00]} Kf3 {[%emt 0:00:00]} 59. Bf6 {[%emt 0:00:00]} g4 {[%emt 0:00:00]} 60. hxg4 {[%emt 0:00:00]} fxg4 {[%emt 0:00:00]} 61. Bh4 {[%emt 0:00:00]} Be5 {[%emt 0:00:00]} 62. Bg5 {[%emt 0:00:00]} Bf4 {[%emt 0:00:00]} 63. Bh4 {[%emt 0:00:00]} Ke4 {[%emt 0:00:00]} 64. Ke2 {[%emt 0:00:00]} Bh6 {[%emt 0:00:00]} 65. Bg3 {[%emt 0:00:00]} Bg5 {[%emt 0:00:00]} 66. Kf1 {[%emt 0:00:00]} h4 {[%emt 0:00:00]} 67. Bd6 {[%emt 0:00:00]} Kf3 {[%emt 0:00:00]} 68. Kg1 {[%emt 0:00:00]} Bf4 {[%emt 0:00:00]} 69. Be7 {[%emt 0:00:00]} h3 {[%emt 0:00:00]} 70. Bh4 {[%emt 0:00:00]} Ke2 {[%emt 0:00:00]} 71. Be7 {[%emt 0:00:00]} Bd2 {[%emt 0:00:00]} 72. Bh4 {[%emt 0:00:00]} Be1 {[%emt 0:00:00]} 73. Bg3 {[%emt 0:00:00]} h2+ {[%emt 0:00:00]} 74. Bxh2 {[%emt 0:00:00]} Bxf2+ {[%emt 0:00:00]} 75. Kg2 {[%emt 0:00:00]} Be1 {[%emt 0:00:09]} 76. Bg3 {[%emt 0:00:00]} Bxg3 {[%emt 0:00:09]} 77. Kxg3 {[%emt 0:00:00]} 1/2-1/2

[Event "94th FRA-ch Open C 2019"]
[Site "Chartres"]
[Date "2019.08.19"]
[Round "3.1"]
[White "Bernard, Thomas"]
[Black "Leclerc, Alain"]
[Result "0-1"]
[ECO "B12"]
[WhiteElo "1689"]
[BlackElo "1787"]
[Annotator "NA"]
[PlyCount "54"]
[EventDate "2019.08.17"]
[EventType "swiss"]
[EventCountry "FRA"]
[SourceTitle "playchess.com"]
[Source "ChessBase"]
[SourceQuality "1"]
[TimeControl "40/5400+30:1800+30"]

1. e4 {[%emt 0:00:00]} c6 {[%emt 0:00:00]} 2. d4 {[%emt 0:00:00]} d5 {[%emt 0:00:00]} 3. e5 {[%emt 0:00:10]} Bf5 {[%emt 0:00:00]} 4. h4 {[%emt 0:00:33]} h6 {[%emt 0:00:28]} 5. g4 {[%emt 0:00:16]} Bh7 {[%emt 0:00:31]} 6. e6 {[%emt 0:00:28]} fxe6 {[%emt 0:01:01]} 7. Bd3 {[%emt 0:00:32]} Bxd3 {[%emt 0:19:00]} 8. Qxd3 {[%emt 0:02:47]} Qd6 {[%emt 0:00:06]} 9. Nf3 {[%emt 0:16:49]} Nd7 {[%emt 0:00:52]} 10. Qg6+ {[%emt 0:01:10]} Kd8 {[%emt 0:00:10]} 11. g5 {[%emt 0:13:48]} e5 {[%emt 0:04:31]} 12. Qf7 {[%emt 0:04:47]} e6 {[%emt 0:02:43]} 13. O-O {[%emt 0:10:58]} e4 {[%emt 0:09:16]} 14. Ne5 {[%emt 0:08:01]} Nxe5 {[%emt 0:00:09]} 15. dxe5 {[%emt 0:00:08]} Qe7 {[%emt 0:00:06]} 16. Qh5 {[%emt 0:03:11]} Qe8 {[%emt 0:00:26]} 17. Qg4 {[%emt 0:02:34]} Kd7 {[%emt 0:04:23]} 18. Be3 {[%emt 0:07:39]} hxg5 {[%emt 0:02:21]} 19. Bxg5 {[%emt 0:05:00]} Nh6 {[%emt 0:03:41]} 20. Qh3 {[%emt 0:04:59]} Nf5 {[%emt 0:00:45]} 21. c4 {[%emt 0:05:25]} Qh5 {[%emt 0:07:27]} 22. Qb3 {[%emt 0:05:52]} b6 {[%emt 0:00:52]} 23. cxd5 {[%emt 0:01:10]} Qg4+ {[%emt 0:04:40]} 24. Kh2 {[%emt 0:00:14]} Nxh4 {[%emt 0:00:25]} 25. dxc6+ {[%emt 0:01:54]} Kc7 {[%emt 0:00:16]} 26. Qg3 {[%emt 0:01:47]} Nf3+ {[%emt 0:00:15]} 27. Kg2 {[%emt 0:00:06]} Rh2# {[%emt 0:39:06]} 0-1

[Event "94th FRA-ch Open C 2019"]
[Site "Chartres"]
[Date "2019.08.19"]
[Round "3.2"]
[White "Castanet, Clement"]
[Black "Demey, Pierre"]
[Result "1-0"]
[ECO "B84"]
[WhiteElo "1650"]
[BlackElo "1757"]
[Annotator "NA"]
[PlyCount "63"]
[EventDate "2019.08.17"]
[EventType "swiss"]
[EventCountry "FRA"]
[SourceTitle "playchess.com"]
[Source "ChessBase"]
[SourceQuality "1"]
[TimeControl "40/5400+30:1800+30"]

1. e4 {[%emt 0:00:00]} c5 {[%emt 0:00:00]} 2. Nf3 {[%emt 0:00:07]} d6 {[%emt 0:00:00]} 3. d4 {[%emt 0:02:09]} cxd4 {[%emt 0:00:00]} 4. Nxd4 {[%emt 0:01:12]} Nf6 {[%emt 0:00:00]} 5. Nc3 {[%emt 0:00:47]} a6 {[%emt 0:00:00]} 6. Bc4 {[%emt 0:06:12]} e6 {[%emt 0:00:11]} 7. O-O {[%emt 0:05:31]} b5 {[%emt 0:00:28]} 8. Bd3 {[%emt 0:01:54]} Bb7 {[%emt 0:00:50]} 9. a3 {[%emt 0:02:26]} Nbd7 {[%emt 0:00:37]} 10. f3 {[%emt 0:05:23]} d5 {[%emt 0:04:10]} 11. Kh1 {[%emt 0:06:54]} Bc5 {[%emt 0:04:32]} 12. Nb3 {[%emt 0:01:51]} Bd6 {[%emt 0:11:54]} 13. Qe2 {[%emt 0:16:19]} Qc7 {[%emt 0:04:03]} 14. f4 {[%emt 0:05:32]} dxe4 {[%emt 0:02:13]} 15. Nxe4 {[%emt 0:00:43]} Bxe4 {[%emt 0:01:57]} 16. Bxe4 {[%emt 0:00:19]} Nxe4 {[%emt 0:00:08]} 17. Qxe4 {[%emt 0:00:07]} O-O {[%emt 0:00:40]} 18. c3 {[%emt 0:02:43]} Nf6 {[%emt 0:00:48]} 19. Qf3 {[%emt 0:00:44]} Rad8 {[%emt 0:05:38]} 20. Nd4 {[%emt 0:02:40]} Nd5 {[%emt 0:09:21]} 21. Bd2 {[%emt 0:06:29]} Bc5 {[%emt 0:04:26]} 22. Rac1 {[%emt 0:06:10]} Bxd4 {[%emt 0:02:06]} 23. cxd4 {[%emt 0:00:08]} Qb6 {[%emt 0:01:22]} 24. Rc5 {[%emt 0:03:39]} f5 {[%emt 0:13:20]} 25. Rfc1 {[%emt 0:02:03]} Nf6 {[%emt 0:08:26]} 26. Be3 {[%emt 0:04:28]} Rfe8 {[%emt 0:06:01]} 27. Rc6 {[%emt 0:03:40]} Qb7 {[%emt 0:00:09]} 28. b4 {[%emt 0:04:54]} Ne4 {[%emt 0:03:59]} 29. Rc7 {[%emt 0:00:54]} Qd5 {[%emt 0:02:53]} 30. Qh5 {[%emt 0:01:06]} Rf8 {[%emt 0:14:48]} 31. Qh4 {[%emt 0:01:13]} Qb3 {[%emt 0:00:00]} 32. Qe7 {[%emt 0:01:24]} 1-0

[Event "94th FRA-ch Open C 2019"]
[Site "Chartres"]
[Date "2019.08.19"]
[Round "3.3"]
[White "Sylvestre-Baron, Laurent"]
[Black "Bele, Charles"]
[Result "0-1"]
[ECO "C20"]
[WhiteElo "1743"]
[BlackElo "1678"]
[Annotator "NA"]
[PlyCount "85"]
[EventDate "2019.08.17"]
[EventType "swiss"]
[EventCountry "FRA"]
[SourceTitle "playchess.com"]
[Source "ChessBase"]
[SourceQuality "1"]
[TimeControl "40/5400+30:1800+30"]

1. c4 {[%emt 0:00:00]} e5 {[%emt 0:00:00]} 2. Nc3 {[%emt 0:00:00]} Nc6 {[%emt 0:00:00]} 3. e4 {[%emt 0:00:12]} Bc5 {[%emt 0:01:44]} 4. Nf3 {[%emt 0:00:16]} d6 {[%emt 0:00:37]} 5. d3 {[%emt 0:05:00]} a6 {[%emt 0:10:40]} 6. Bg5 {[%emt 0:08:47]} Nge7 {[%emt 0:09:47]} 7. a3 {[%emt 0:04:29]} O-O {[%emt 0:05:21]} 8. Nd5 {[%emt 0:24:21]} f6 {[%emt 0:16:47]} 9. Be3 {[%emt 0:05:43]} Bg4 {[%emt 0:12:03]} 10. h3 {[%emt 0:02:33]} Bxf3 {[%emt 0:01:47]} 11. gxf3 {[%emt 0:01:26]} Nd4 {[%emt 0:01:33]} 12. f4 {[%emt 0:04:05]} f5 {[%emt 0:14:15]} 13. fxe5 {[%emt 0:06:53]} dxe5 {[%emt 0:00:14]} 14. b4 {[%emt 0:00:58]} Ba7 {[%emt 0:00:11]} 15. Bg5 {[%emt 0:02:48]} Rf7 {[%emt 0:02:30]} 16. Bg2 {[%emt 0:09:13]} c6 {[%emt 0:03:55]} 17. Nxe7+ {[%emt 0:01:40]} Rxe7 {[%emt 0:00:06]} 18. exf5 {[%emt 0:03:28]} Nxf5 {[%emt 0:03:54]} 19. Be4 {[%emt 0:01:39]} Qd4 {[%emt 0:01:48]} 20. Ra2 {[%emt 0:07:57]} Rf7 {[%emt 0:01:15]} 21. Qc2 {[%emt 0:05:55]} Qd7 {[%emt 0:03:50]} 22. c5 {[%emt 0:01:54]} Qe6 {[%emt 0:01:44]} 23. Qc4 {[%emt 0:00:43]} Qxc4 {[%emt 0:02:00]} 24. dxc4 {[%emt 0:00:03]} Nd4 {[%emt 0:00:12]} 25. Be3 {[%emt 0:00:36]} Rd8 {[%emt 0:00:56]} 26. O-O {[%emt 0:01:02]} h6 {[%emt 0:01:36]} 27. Kg2 {[%emt 0:00:09]} Nf5 {[%emt 0:01:04]} 28. Bc1 {[%emt 0:01:18]} Nh4+ {[%emt 0:01:42]} 29. Kg3 {[%emt 0:00:04]} Nf5+ {[%emt 0:00:08]} 30. Kg2 {[%emt 0:00:14]} Nh4+ {[%emt 0:03:21]} 31. Kh2 {[%emt 0:00:13]} Rdf8 {[%emt 0:00:00]} 32. Be3 {[%emt 0:00:27]} Bb8 {[%emt 0:00:00]} 33. Rd2 {[%emt 0:01:03]} Nf3+ {[%emt 0:00:19]} 34. Bxf3 {[%emt 0:00:06]} Rxf3 {[%emt 0:00:07]} 35. Rd7 {[%emt 0:00:12]} Rxe3 {[%emt 0:00:38]} 36. fxe3 {[%emt 0:01:00]} Rxf1 {[%emt 0:00:07]} 37. Rxb7 {[%emt 0:00:04]} Rf8 {[%emt 0:00:26]} 38. Rb6 {[%emt 0:00:04]} e4+ {[%emt 0:00:22]} 39. Rxb8 {[%emt 0:00:16]} Rxb8 {[%emt 0:00:30]} 40. Kg3 {[%emt 0:03:09]} Rf8 {[%emt 0:00:00]} 41. a4 {[%emt 0:27:14]} Rf3+ {[%emt 0:29:48]} 42. Kg2 {[%emt 0:00:11]} Rxe3 {[%emt 0:02:14]} 43. b5 {[%emt 0:00:10]} 0-1

[Event "94th FRA-ch Open C 2019"]
[Site "Chartres"]
[Date "2019.08.19"]
[Round "3.4"]
[White "Cregut, Marian"]
[Black "Varin, Pierre-antoine"]
[Result "1-0"]
[ECO "C00"]
[WhiteElo "1717"]
[BlackElo "1677"]
[Annotator "NA"]
[PlyCount "85"]
[EventDate "2019.08.17"]
[EventType "swiss"]
[EventCountry "FRA"]
[SourceTitle "playchess.com"]
[Source "ChessBase"]
[SourceQuality "1"]
[TimeControl "40/5400+30:1800+30"]

1. e4 {[%emt 0:00:00]} e6 {[%emt 0:00:00]} 2. d3 {[%emt 0:00:09]} d5 {[%emt 0:00:00]} 3. Nd2 {[%emt 0:00:24]} Nf6 {[%emt 0:02:32]} 4. g3 {[%emt 0:01:43]} c5 {[%emt 0:00:36]} 5. Bg2 {[%emt 0:00:55]} Nc6 {[%emt 0:00:27]} 6. Ngf3 {[%emt 0:02:55]} Bd6 {[%emt 0:00:43]} 7. c3 {[%emt 0:05:57]} O-O {[%emt 0:05:58]} 8. O-O {[%emt 0:05:19]} Qc7 {[%emt 0:06:17]} 9. Ne1 {[%emt 0:09:27]} Rd8 {[%emt 0:12:30]} 10. f4 {[%emt 0:08:46]} dxe4 {[%emt 0:02:19]} 11. dxe4 {[%emt 0:00:29]} e5 {[%emt 0:01:14]} 12. f5 {[%emt 0:00:25]} c4 {[%emt 0:04:54]} 13. Qe2 {[%emt 0:04:03]} Na5 {[%emt 0:02:24]} 14. g4 {[%emt 0:04:29]} b6 {[%emt 0:02:22]} 15. g5 {[%emt 0:03:46]} Ne8 {[%emt 0:00:54]} 16. Qh5 {[%emt 0:16:15]} g6 {[%emt 0:08:26]} 17. Qe2 {[%emt 0:06:50]} Bb7 {[%emt 0:02:07]} 18. f6 {[%emt 0:03:20]} Bc5+ {[%emt 0:05:46]} 19. Kh1 {[%emt 0:01:00]} Rd7 {[%emt 0:04:28]} 20. h4 {[%emt 0:02:42]} Rad8 {[%emt 0:01:28]} 21. Bh3 {[%emt 0:02:54]} Rd6 {[%emt 0:04:26]} 22. h5 {[%emt 0:03:07]} Qc6 {[%emt 0:09:11]} 23. Nef3 {[%emt 0:02:57]} Rd3 {[%emt 0:03:36]} 24. hxg6 {[%emt 0:02:11]} hxg6 {[%emt 0:01:18]} 25. Qh2 {[%emt 0:01:07]} Qd6 {[%emt 0:05:49]} 26. b4 {[%emt 0:05:39]} cxb3 {[%emt 0:13:15]} 27. axb3 {[%emt 0:00:41]} Be3 {[%emt 0:00:00]} 28. b4 {[%emt 0:01:15]} Bxd2 {[%emt 0:00:00]} 29. Nxd2 {[%emt 0:01:34]} Rxd2 {[%emt 0:00:00]} 30. Bxd2 {[%emt 0:00:24]} Bxe4+ {[%emt 0:00:00]} 31. Bg2 {[%emt 0:00:23]} Bxg2+ {[%emt 0:00:00]} 32. Qxg2 {[%emt 0:00:53]} Nb3 {[%emt 0:00:00]} 33. Rad1 {[%emt 0:00:50]} e4 {[%emt 0:00:00]} 34. Be3 {[%emt 0:01:01]} Qxd1 {[%emt 0:00:37]} 35. Rxd1 {[%emt 0:00:02]} Rxd1+ {[%emt 0:00:00]} 36. Kh2 {[%emt 0:04:08]} Rd7 {[%emt 0:03:01]} 37. Qxe4 {[%emt 0:00:00]} Kf8 {[%emt 0:00:15]} 38. Qc2 {[%emt 0:00:00]} a5 {[%emt 0:00:57]} 39. Qxb3 {[%emt 0:00:00]} Rd3 {[%emt 0:00:57]} 40. Bxb6 {[%emt 0:00:00]} a4 {[%emt 0:00:32]} 41. Qxa4 {[%emt 0:28:28]} Rxc3 {[%emt 0:30:24]} 42. Bc5+ {[%emt 0:00:02]} Kg8 {[%emt 0:00:28]} 43. Qxe8+ {[%emt 0:00:03]} 1-0

[Event "94th FRA-ch Open C 2019"]
[Site "Chartres"]
[Date "2019.08.19"]
[Round "3.5"]
[White "Sithisak, Remi"]
[Black "Arcusa, Michel"]
[Result "1-0"]
[ECO "A53"]
[WhiteElo "1635"]
[BlackElo "1716"]
[Annotator "NA"]
[PlyCount "79"]
[EventDate "2019.08.17"]
[EventType "swiss"]
[EventCountry "FRA"]
[SourceTitle "playchess.com"]
[Source "ChessBase"]
[SourceQuality "1"]
[TimeControl "40/5400+30:1800+30"]

1. d4 {[%emt 0:00:00]} c6 {[%emt 0:00:00]} 2. Nf3 {[%emt 0:00:14]} d6 {[%emt 0:00:00]} 3. c4 {[%emt 0:00:38]} Qc7 {[%emt 0:00:00]} 4. Nc3 {[%emt 0:03:24]} e5 {[%emt 0:00:12]} 5. e4 {[%emt 0:01:46]} Nf6 {[%emt 0:04:55]} 6. h3 {[%emt 0:02:59]} Be7 {[%emt 0:00:20]} 7. g3 {[%emt 0:03:23]} Nbd7 {[%emt 0:01:12]} 8. Bg2 {[%emt 0:00:40]} Nf8 {[%emt 0:00:04]} 9. Be3 {[%emt 0:03:06]} Ng6 {[%emt 0:02:37]} 10. Rc1 {[%emt 0:03:16]} Be6 {[%emt 0:06:31]} 11. d5 {[%emt 0:01:53]} Bd7 {[%emt 0:00:23]} 12. O-O {[%emt 0:01:48]} c5 {[%emt 0:06:05]} 13. Nd2 {[%emt 0:06:13]} h5 {[%emt 0:02:09]} 14. a3 {[%emt 0:05:21]} Nh7 {[%emt 0:09:55]} 15. b4 {[%emt 0:05:15]} b6 {[%emt 0:00:32]} 16. bxc5 {[%emt 0:07:21]} bxc5 {[%emt 0:00:28]} 17. Nb5 {[%emt 0:02:14]} Qc8 {[%emt 0:05:48]} 18. Kh2 {[%emt 0:01:53]} a6 {[%emt 0:00:14]} 19. Nc3 {[%emt 0:01:04]} Ng5 {[%emt 0:08:30]} 20. h4 {[%emt 0:02:52]} Nh7 {[%emt 0:00:50]} 21. Rb1 {[%emt 0:08:14]} Nf6 {[%emt 0:02:09]} 22. f3 {[%emt 0:01:01]} Ng8 {[%emt 0:02:33]} 23. Na4 {[%emt 0:01:27]} Bd8 {[%emt 0:04:56]} 24. Nb6 {[%emt 0:01:56]} Bxb6 {[%emt 0:00:02]} 25. Rxb6 {[%emt 0:00:12]} Qc7 {[%emt 0:00:12]} 26. Qb3 {[%emt 0:01:23]} N8e7 {[%emt 0:14:56]} 27. Rb1 {[%emt 0:09:43]} O-O {[%emt 0:04:49]} 28. Rb7 {[%emt 0:01:24]} Qd8 {[%emt 0:02:33]} 29. Qb6 {[%emt 0:03:12]} Nc8 {[%emt 0:00:00]} 30. Qxd8 {[%emt 0:00:26]} Rxd8 {[%emt 0:06:49]} 31. Rc7 {[%emt 0:01:49]} Nf8 {[%emt 0:14:13]} 32. Rbb7 {[%emt 0:01:17]} Ne7 {[%emt 0:00:42]} 33. Bh3 {[%emt 0:00:50]} Bxh3 {[%emt 0:00:42]} 34. Kxh3 {[%emt 0:00:05]} Nc8 {[%emt 0:00:41]} 35. Rxf7 {[%emt 0:00:38]} g6 {[%emt 0:00:31]} 36. Bh6 {[%emt 0:00:14]} Re8 {[%emt 0:00:37]} 37. Bxf8 {[%emt 0:00:10]} Rxf8 {[%emt 0:00:27]} 38. Rg7+ {[%emt 0:00:09]} Kh8 {[%emt 0:00:02]} 39. Rh7+ {[%emt 0:00:08]} Kg8 {[%emt 0:00:01]} 40. Rbg7# {[%emt 0:20:22]} 1-0

[Event "94th FRA-ch Open C 2019"]
[Site "Chartres"]
[Date "2019.08.19"]
[Round "3.6"]
[White "Leccia, Thomas"]
[Black "Schmitt, Nicolas"]
[Result "0-1"]
[ECO "B17"]
[WhiteElo "1706"]
[BlackElo "1665"]
[Annotator "NA"]
[PlyCount "72"]
[EventDate "2019.08.17"]
[EventType "swiss"]
[EventCountry "FRA"]
[SourceTitle "playchess.com"]
[Source "ChessBase"]
[SourceQuality "1"]
[TimeControl "40/5400+30:1800+30"]

1. e4 {[%emt 0:00:00]} c6 {[%emt 0:00:00]} 2. d4 {[%emt 0:00:00]} d5 {[%emt 0:00:00]} 3. Nc3 {[%emt 0:00:00]} dxe4 {[%emt 0:00:00]} 4. Nxe4 {[%emt 0:00:00]} Nd7 {[%emt 0:00:01]} 5. Ng5 {[%emt 0:00:10]} Ngf6 {[%emt 0:00:48]} 6. Bd3 {[%emt 0:00:16]} e6 {[%emt 0:01:51]} 7. c3 {[%emt 0:06:57]} Bd6 {[%emt 0:03:28]} 8. Qe2 {[%emt 0:01:41]} h6 {[%emt 0:08:02]} 9. Ne4 {[%emt 0:01:38]} Nxe4 {[%emt 0:00:19]} 10. Qxe4 {[%emt 0:00:10]} Nf6 {[%emt 0:00:17]} 11. Qe2 {[%emt 0:00:05]} O-O {[%emt 0:05:01]} 12. Bd2 {[%emt 0:04:41]} e5 {[%emt 0:06:39]} 13. dxe5 {[%emt 0:02:12]} Bxe5 {[%emt 0:00:09]} 14. O-O-O {[%emt 0:01:41]} Re8 {[%emt 0:04:22]} 15. Qf1 {[%emt 0:23:38]} Qa5 {[%emt 0:10:35]} 16. f4 {[%emt 0:00:38]} Bd6 {[%emt 0:01:39]} 17. Kb1 {[%emt 0:00:33]} b5 {[%emt 0:12:37]} 18. h3 {[%emt 0:54:40]} Be6 {[%emt 0:23:41]} 19. c4 {[%emt 0:00:00]} Bb4 {[%emt 0:00:52]} 20. Bxb4 {[%emt 0:00:00]} Qxb4 {[%emt 0:00:06]} 21. cxb5 {[%emt 0:00:00]} cxb5 {[%emt 0:01:02]} 22. Ne2 {[%emt 0:00:00]} Rec8 {[%emt 0:08:57]} 23. Nc1 {[%emt 0:00:00]} Qa5 {[%emt 0:07:00]} 24. g4 {[%emt 0:00:00]} Rxc1+ {[%emt 0:01:27]} 25. Kxc1 {[%emt 0:00:00]} Qxa2 {[%emt 0:01:02]} 26. Qe2 {[%emt 0:00:00]} Rc8+ {[%emt 0:01:31]} 27. Kd2 {[%emt 0:00:00]} Qa5+ {[%emt 0:00:30]} 28. Ke3 {[%emt 0:00:00]} Bd5 {[%emt 0:00:42]} 29. Kf2 {[%emt 0:00:00]} Qb6+ {[%emt 0:00:32]} 30. Kg3 {[%emt 0:00:00]} Re8 {[%emt 0:00:20]} 31. Qc2 {[%emt 0:03:31]} Qe3+ {[%emt 0:00:27]} 32. Kh2 {[%emt 0:00:09]} Qxf4+ {[%emt 0:00:07]} 33. Kg1 {[%emt 0:00:18]} Qg3+ {[%emt 0:00:11]} 34. Kf1 {[%emt 0:00:14]} Bxh1 {[%emt 0:00:06]} 35. Bxb5 {[%emt 0:00:31]} Qxh3+ {[%emt 0:00:26]} 36. Kg1 {[%emt 0:00:17]} Bf3 {[%emt 0:01:06]} 0-1

[Event "94th FRA-ch Open C 2019"]
[Site "Chartres"]
[Date "2019.08.20"]
[Round "4.1"]
[White "Leclerc, Alain"]
[Black "Castanet, Clement"]
[Result "1-0"]
[ECO "C74"]
[WhiteElo "1787"]
[BlackElo "1650"]
[Annotator "NA"]
[PlyCount "67"]
[EventDate "2019.08.17"]
[EventType "swiss"]
[EventCountry "FRA"]
[SourceTitle "playchess.com"]
[Source "ChessBase"]
[SourceQuality "1"]
[TimeControl "40/5400+30:1800+30"]

1. e4 {[%emt 0:00:00]} e5 {[%emt 0:00:00]} 2. Nf3 {[%emt 0:00:00]} Nc6 {[%emt 0:00:00]} 3. Bb5 {[%emt 0:00:00]} a6 {[%emt 0:00:50]} 4. Ba4 {[%emt 0:00:10]} d6 {[%emt 0:01:16]} 5. c3 {[%emt 0:09:55]} Bg4 {[%emt 0:09:12]} 6. h3 {[%emt 0:00:27]} Bh5 {[%emt 0:01:22]} 7. d3 {[%emt 0:14:32]} b5 {[%emt 0:08:46]} 8. Bc2 {[%emt 0:00:07]} Nf6 {[%emt 0:05:46]} 9. Nbd2 {[%emt 0:03:55]} d5 {[%emt 0:02:44]} 10. Qe2 {[%emt 0:00:18]} d4 {[%emt 0:10:48]} 11. g4 {[%emt 0:03:20]} Bg6 {[%emt 0:00:42]} 12. Nf1 {[%emt 0:06:18]} Bc5 {[%emt 0:13:02]} 13. Ng3 {[%emt 0:00:38]} h6 {[%emt 0:01:50]} 14. O-O {[%emt 0:00:38]} Qd7 {[%emt 0:05:41]} 15. Nf5 {[%emt 0:01:01]} Bxf5 {[%emt 0:00:08]} 16. exf5 {[%emt 0:00:26]} Qe7 {[%emt 0:02:25]} 17. Re1 {[%emt 0:01:30]} Nd7 {[%emt 0:00:28]} 18. Qe4 {[%emt 0:02:13]} Qd6 {[%emt 0:05:17]} 19. cxd4 {[%emt 0:02:13]} Nxd4 {[%emt 0:07:00]} 20. Nxd4 {[%emt 0:01:43]} Qxd4 {[%emt 0:00:14]} 21. Qxa8+ {[%emt 0:00:17]} Ke7 {[%emt 0:00:31]} 22. Qf3 {[%emt 0:00:52]} h5 {[%emt 0:03:41]} 23. g5 {[%emt 0:01:38]} f6 {[%emt 0:02:23]} 24. g6 {[%emt 0:00:28]} Bb4 {[%emt 0:01:04]} 25. Re4 {[%emt 0:00:40]} Qd6 {[%emt 0:01:16]} 26. Be3 {[%emt 0:03:23]} h4 {[%emt 0:04:36]} 27. a3 {[%emt 0:01:58]} Bc5 {[%emt 0:00:48]} 28. b4 {[%emt 0:01:09]} Bxe3 {[%emt 0:00:49]} 29. Rxe3 {[%emt 0:05:32]} Rh5 {[%emt 0:01:01]} 30. Qxh5 {[%emt 0:00:23]} Qd4 {[%emt 0:01:38]} 31. Rae1 {[%emt 0:00:10]} c5 {[%emt 0:00:22]} 32. bxc5 {[%emt 0:03:59]} Nxc5 {[%emt 0:00:13]} 33. Qh8 {[%emt 0:00:59]} Qf4 {[%emt 0:01:46]} 34. Qxg7+ {[%emt 0:00:19]} 1-0